[Event "Titled Tuesday Blitz April 25 Late 2023"]
[White "Ricaurte Lopez, Juan Carlos"]
[Black "Hoffmann, Asa"]
[WhiteFideId "3600327"]
[BlackFideId "2001470"]
[WhiteElo "2200"]
[BlackElo "2117"]
[Result "0-1"]
[Round "04"]
[TimeControl "180+2"]
[Date "2023.04.25"]
[WhiteClock "0:00:19"]
[BlackClock "0:01:24"]

1. e4 {[%clk 0:02:57]}  d6 {[%clk 0:02:56]} 2. d4 {[%clk 0:02:57]}  Nf6 {[%clk 0:02:55]} 3. Nc3 {[%clk 0:02:57]}  c6 {[%clk 0:02:55]} 4. Bg5 {[%clk 0:02:54]}  Nbd7 {[%clk 0:02:54]} 5. Qd2 {[%clk 0:02:54]}  e5 {[%clk 0:02:52]} 6. O-O-O {[%clk 0:02:46]}  Qa5 {[%clk 0:02:50]} 7. dxe5 {[%clk 0:02:42]}  dxe5 {[%clk 0:02:49]} 8. Bc4 {[%clk 0:02:33]}  Bb4 {[%clk 0:02:47]} 9. f3 {[%clk 0:02:31]}  Bxc3 {[%clk 0:02:45]} 10. Qxc3 {[%clk 0:02:29]}  Qxc3 {[%clk 0:02:44]} 11. bxc3 {[%clk 0:02:30]}  Ke7 {[%clk 0:02:43]} 12. Ne2 {[%clk 0:02:27]}  Nb6 {[%clk 0:02:43]} 13. Bb3 {[%clk 0:02:15]}  a5 {[%clk 0:02:41]} 14. a3 {[%clk 0:02:13]}  a4 {[%clk 0:02:38]} 15. Ba2 {[%clk 0:02:12]}  Be6 {[%clk 0:02:38]} 16. Bxe6 {[%clk 0:02:08]}  Kxe6 {[%clk 0:02:38]} 17. Rd3 {[%clk 0:02:07]}  Rhd8 {[%clk 0:02:33]} 18. Kb1 {[%clk 0:02:05]}  Nc4 {[%clk 0:02:32]} 19. Bc1 {[%clk 0:02:03]}  Rd6 {[%clk 0:02:25]} 20. Rxd6+ {[%clk 0:02:01]}  Kxd6 {[%clk 0:02:21]} 21. Rd1+ {[%clk 0:01:59]}  Kc7 {[%clk 0:02:21]} 22. Ng3 {[%clk 0:02:00]}  g6 {[%clk 0:02:20]} 23. Ka2 {[%clk 0:01:55]}  Nd7 {[%clk 0:02:17]} 24. Bh6 {[%clk 0:01:41]}  f6 {[%clk 0:02:16]} 25. h4 {[%clk 0:01:35]}  Ra5 {[%clk 0:02:15]} 26. Nf1 {[%clk 0:01:33]}  Rb5 {[%clk 0:02:11]} 27. Ne3 {[%clk 0:01:14]}  Rb2+ {[%clk 0:02:02]} 28. Ka1 {[%clk 0:01:11]}  Nxe3 {[%clk 0:02:01]} 29. Bxe3 {[%clk 0:01:02]}  Rxc2 {[%clk 0:02:01]} 30. Bd2 {[%clk 0:00:51]}  Nc5 {[%clk 0:01:57]} 31. Kb1 {[%clk 0:00:50]}  Rxd2 {[%clk 0:01:49]} 32. Rxd2 {[%clk 0:00:49]}  b5 {[%clk 0:01:44]} 33. Kb2 {[%clk 0:00:43]}  Nb7 {[%clk 0:01:38]} 34. c4 {[%clk 0:00:33]}  Nd6 {[%clk 0:01:34]} 35. cxb5 {[%clk 0:00:26]}  Nc4+ {[%clk 0:01:34]} 36. Kc3 {[%clk 0:00:22]}  Nxd2 {[%clk 0:01:34]} 37. bxc6 {[%clk 0:00:20]}  Nb3 {[%clk 0:01:30]} 38. Kb4 {[%clk 0:00:19]}  Kxc6 {[%clk 0:01:28]} 39. Kxa4 {[%clk 0:00:19]}  Nd4 {[%clk 0:01:28]} 40. Kb4 {[%clk 0:00:18]}  Kb6 {[%clk 0:01:27]} 41. a4 {[%clk 0:00:19]}  Nc2+ {[%clk 0:01:25]} 42. Kc4 {[%clk 0:00:19]}  Ne3+ {[%clk 0:01:25]} 43. Kb4 {[%clk 0:00:18]}  Nxg2 {[%clk 0:01:25]} 44. a5+ {[%clk 0:00:18]}  Ka6 {[%clk 0:01:25]} 45. Kc5 {[%clk 0:00:19]}  Nxh4 {[%clk 0:01:25]} 46. Kd6 {[%clk 0:00:19]}  Nxf3 {[%clk 0:01:24]} 47. Ke6 {[%clk 0:00:19]}  h5 {[%clk 0:01:24]} 0-1


[Site "https://www.chess.com"]

[Event "Titled Tuesday Blitz April 25 Late 2023"]
[White "Liu, Casper"]
[Black "Fuentes Godoy, Lilia Ivonne"]
[WhiteFideId "1454153"]
[BlackFideId "5104130"]
[WhiteElo "2221"]
[BlackElo "2096"]
[Result "1-0"]
[Round "04"]
[TimeControl "180+2"]
[Date "2023.04.25"]
[WhiteClock "0:00:26"]
[BlackClock "0:00:01"]

1. e4 {[%clk 0:03:00]}  c6 {[%clk 0:02:59]} 2. d4 {[%clk 0:02:54]}  d5 {[%clk 0:03:00]} 3. Nc3 {[%clk 0:02:54]}  dxe4 {[%clk 0:03:00]} 4. Nxe4 {[%clk 0:02:55]}  Bf5 {[%clk 0:03:00]} 5. Ng3 {[%clk 0:02:55]}  Bg6 {[%clk 0:03:00]} 6. Nh3 {[%clk 0:02:55]}  e6 {[%clk 0:02:59]} 7. Nf4 {[%clk 0:02:56]}  Bd6 {[%clk 0:03:00]} 8. c3 {[%clk 0:02:56]}  Qc7 {[%clk 0:03:00]} 9. Nxg6 {[%clk 0:02:56]}  hxg6 {[%clk 0:03:00]} 10. Bd3 {[%clk 0:02:57]}  Nf6 {[%clk 0:03:00]} 11. O-O {[%clk 0:02:54]}  Nbd7 {[%clk 0:02:24]} 12. Re1 {[%clk 0:02:42]}  O-O-O {[%clk 0:02:20]} 13. Qf3 {[%clk 0:02:42]}  c5 {[%clk 0:02:14]} 14. dxc5 {[%clk 0:02:37]}  Nxc5 {[%clk 0:02:14]} 15. Bc2 {[%clk 0:02:38]}  e5 {[%clk 0:01:53]} 16. Bg5 {[%clk 0:02:29]}  e4 {[%clk 0:01:47]} 17. Qe2 {[%clk 0:02:06]}  Rde8 {[%clk 0:01:36]} 18. Rad1 {[%clk 0:01:58]}  Bf4 {[%clk 0:01:14]} 19. Bxf4 {[%clk 0:01:27]}  Qxf4 {[%clk 0:01:14]} 20. Qc4 {[%clk 0:01:28]}  Qc7 {[%clk 0:01:10]} 21. h3 {[%clk 0:01:12]}  e3 {[%clk 0:01:09]} 22. Rxe3 {[%clk 0:01:07]}  Rxe3 {[%clk 0:01:08]} 23. fxe3 {[%clk 0:01:08]}  Qxg3 {[%clk 0:00:59]} 24. Qxc5+ {[%clk 0:01:08]}  Kb8 {[%clk 0:00:59]} 25. Qd6+ {[%clk 0:01:02]}  Qxd6 {[%clk 0:00:58]} 26. Rxd6 {[%clk 0:01:03]}  Kc7 {[%clk 0:00:58]} 27. Rd4 {[%clk 0:01:01]}  Re8 {[%clk 0:00:52]} 28. Kf2 {[%clk 0:00:59]}  Re6 {[%clk 0:00:49]} 29. Bb3 {[%clk 0:00:58]}  Re7 {[%clk 0:00:45]} 30. Kf3 {[%clk 0:00:59]}  Nd7 {[%clk 0:00:34]} 31. g4 {[%clk 0:00:57]}  Ne5+ {[%clk 0:00:34]} 32. Ke2 {[%clk 0:00:55]}  g5 {[%clk 0:00:31]} 33. Bd5 {[%clk 0:00:48]}  f6 {[%clk 0:00:25]} 34. c4 {[%clk 0:00:44]}  Re8 {[%clk 0:00:23]} 35. b4 {[%clk 0:00:42]}  Rh8 {[%clk 0:00:23]} 36. Bg2 {[%clk 0:00:40]}  Ng6 {[%clk 0:00:15]} 37. a4 {[%clk 0:00:37]}  Re8 {[%clk 0:00:13]} 38. a5 {[%clk 0:00:35]}  Nf4+ {[%clk 0:00:11]} 39. Kf3 {[%clk 0:00:33]}  Nxg2 {[%clk 0:00:11]} 40. Kxg2 {[%clk 0:00:34]}  Rxe3 {[%clk 0:00:11]} 41. Rd5 {[%clk 0:00:32]}  Rc3 {[%clk 0:00:11]} 42. Rc5+ {[%clk 0:00:32]}  Kd6 {[%clk 0:00:11]} 43. Rb5 {[%clk 0:00:30]}  Rxc4 {[%clk 0:00:11]} 44. Rxb7 {[%clk 0:00:30]}  Rc2+ {[%clk 0:00:12]} 45. Kf3 {[%clk 0:00:30]}  Rc3+ {[%clk 0:00:12]} 46. Ke4 {[%clk 0:00:29]}  Rxh3 {[%clk 0:00:12]} 47. Rxa7 {[%clk 0:00:28]}  Rb3 {[%clk 0:00:10]} 48. Rb7 {[%clk 0:00:28]}  Kc6 {[%clk 0:00:10]} 49. a6 {[%clk 0:00:29]}  Ra3 {[%clk 0:00:07]} 50. b5+ {[%clk 0:00:28]}  Kc5 {[%clk 0:00:07]} 51. a7 {[%clk 0:00:29]}  Ra4+ {[%clk 0:00:07]} 52. Kf5 {[%clk 0:00:28]}  Kd6 {[%clk 0:00:01]} 53. b6 {[%clk 0:00:26]} 1-0


[Site "https://www.chess.com"]

[Event "Titled Tuesday Blitz April 25 Late 2023"]
[White "Srinath, Rao S.V."]
[Black "yoriiiis"]
[WhiteFideId "5028876"]
[WhiteElo "2196"]
[BlackElo "2127"]
[Result "1-0"]
[Round "04"]
[TimeControl "180+2"]
[Date "2023.04.25"]
[WhiteClock "0:00:10"]
[BlackClock "0:00:09"]

1. e4 {[%clk 0:03:00]}  c5 {[%clk 0:03:00]} 2. Nf3 {[%clk 0:03:00]}  e6 {[%clk 0:02:59]} 3. c4 {[%clk 0:02:58]}  Nc6 {[%clk 0:02:58]} 4. d4 {[%clk 0:02:57]}  cxd4 {[%clk 0:02:58]} 5. Nxd4 {[%clk 0:02:57]}  Nf6 {[%clk 0:02:58]} 6. Nc3 {[%clk 0:02:55]}  a6 {[%clk 0:02:55]} 7. Be2 {[%clk 0:02:54]}  Qc7 {[%clk 0:02:55]} 8. O-O {[%clk 0:02:52]}  Be7 {[%clk 0:02:55]} 9. Be3 {[%clk 0:02:46]}  O-O {[%clk 0:02:55]} 10. Rc1 {[%clk 0:02:43]}  d6 {[%clk 0:02:55]} 11. f3 {[%clk 0:02:16]}  b6 {[%clk 0:02:53]} 12. Ncb5 {[%clk 0:02:10]}  Qd7 {[%clk 0:02:45]} 13. Nxc6 {[%clk 0:02:09]}  Qxc6 {[%clk 0:02:44]} 14. Nd4 {[%clk 0:02:02]}  Qd7 {[%clk 0:02:35]} 15. Qb3 {[%clk 0:02:01]}  Rb8 {[%clk 0:02:30]} 16. Rfd1 {[%clk 0:01:58]}  Qb7 {[%clk 0:02:10]} 17. Qc2 {[%clk 0:01:31]}  Bd7 {[%clk 0:02:07]} 18. b4 {[%clk 0:01:26]}  Rfc8 {[%clk 0:02:05]} 19. Qd3 {[%clk 0:01:11]}  Ba4 {[%clk 0:01:54]} 20. Nb3 {[%clk 0:01:08]}  Rc7 {[%clk 0:01:41]} 21. Bf4 {[%clk 0:01:03]}  Rd7 {[%clk 0:01:19]} 22. Qc3 {[%clk 0:00:52]}  Rc8 {[%clk 0:01:07]} 23. Qb2 {[%clk 0:00:31]}  Ne8 {[%clk 0:00:57]} 24. Be3 {[%clk 0:00:27]}  Rdd8 {[%clk 0:00:44]} 25. Bd4 {[%clk 0:00:26]}  Bf6 {[%clk 0:00:39]} 26. Bxf6 {[%clk 0:00:20]}  Nxf6 {[%clk 0:00:39]} 27. Rd2 {[%clk 0:00:20]}  Nd7 {[%clk 0:00:37]} 28. Rcd1 {[%clk 0:00:17]}  Ne5 {[%clk 0:00:30]} 29. Rxd6 {[%clk 0:00:17]}  Rxd6 {[%clk 0:00:29]} 30. Rxd6 {[%clk 0:00:17]}  Qc7 {[%clk 0:00:27]} 31. Qxe5 {[%clk 0:00:16]}  b5 {[%clk 0:00:21]} 32. c5 {[%clk 0:00:16]}  Bxb3 {[%clk 0:00:20]} 33. axb3 {[%clk 0:00:15]}  a5 {[%clk 0:00:20]} 34. Qd4 {[%clk 0:00:14]}  axb4 {[%clk 0:00:20]} 35. Qxb4 {[%clk 0:00:15]}  h6 {[%clk 0:00:20]} 36. Qxb5 {[%clk 0:00:14]}  Rb8 {[%clk 0:00:18]} 37. Qc6 {[%clk 0:00:11]}  Qxc6 {[%clk 0:00:17]} 38. Rxc6 {[%clk 0:00:11]}  Rxb3 {[%clk 0:00:17]} 39. Rc8+ {[%clk 0:00:11]}  Kh7 {[%clk 0:00:17]} 40. Kf2 {[%clk 0:00:12]}  Rc3 {[%clk 0:00:17]} 41. c6 {[%clk 0:00:12]}  Rc2 {[%clk 0:00:16]} 42. c7 {[%clk 0:00:12]}  Rc3 {[%clk 0:00:17]} 43. Kg3 {[%clk 0:00:11]}  Rc2 {[%clk 0:00:17]} 44. Bd3 {[%clk 0:00:11]}  Rc3 {[%clk 0:00:17]} 45. Ba6 {[%clk 0:00:11]}  Rc6 {[%clk 0:00:17]} 46. Bb7 {[%clk 0:00:11]}  Rc3 {[%clk 0:00:16]} 47. Kf4 {[%clk 0:00:10]}  Kg6 {[%clk 0:00:16]} 48. Ke5 {[%clk 0:00:09]}  Rc5+ {[%clk 0:00:13]} 49. Kd6 {[%clk 0:00:09]}  Rc2 {[%clk 0:00:13]} 50. Rd8 {[%clk 0:00:10]}  Rd2+ {[%clk 0:00:11]} 51. Ke7 {[%clk 0:00:10]}  Rb2 {[%clk 0:00:09]} 52. c8=Q {[%clk 0:00:10]} 1-0


[Site "https://www.chess.com"]

[Event "Titled Tuesday Blitz April 25 Late 2023"]
[White "Zakarian, David"]
[Black "Chakravarthi Reddy, M"]
[WhiteFideId "13301276"]
[BlackFideId "25009532"]
[WhiteElo "2306"]
[BlackElo "2201"]
[Result "1-0"]
[Round "04"]
[TimeControl "180+2"]
[Date "2023.04.25"]
[WhiteClock "0:00:46"]
[BlackClock "0:00:01"]

1. e4 {[%clk 0:02:50]}  c5 {[%clk 0:02:59]} 2. Nf3 {[%clk 0:02:49]}  d6 {[%clk 0:03:00]} 3. Bb5+ {[%clk 0:02:46]}  Nd7 {[%clk 0:03:00]} 4. O-O {[%clk 0:02:44]}  Nf6 {[%clk 0:03:00]} 5. Re1 {[%clk 0:02:43]}  e5 {[%clk 0:02:59]} 6. c3 {[%clk 0:02:42]}  Be7 {[%clk 0:02:58]} 7. d4 {[%clk 0:02:42]}  O-O {[%clk 0:02:58]} 8. a4 {[%clk 0:02:38]}  cxd4 {[%clk 0:02:57]} 9. cxd4 {[%clk 0:02:38]}  exd4 {[%clk 0:02:57]} 10. Qxd4 {[%clk 0:02:32]}  Nc5 {[%clk 0:02:56]} 11. Nc3 {[%clk 0:02:32]}  Bg4 {[%clk 0:02:54]} 12. Nd2 {[%clk 0:02:19]}  a6 {[%clk 0:02:49]} 13. Bf1 {[%clk 0:02:17]}  Rc8 {[%clk 0:02:45]} 14. b4 {[%clk 0:02:16]}  Ne6 {[%clk 0:02:44]} 15. Qe3 {[%clk 0:02:13]}  Bh5 {[%clk 0:02:29]} 16. Bb2 {[%clk 0:02:09]}  Ng4 {[%clk 0:02:29]} 17. Qh3 {[%clk 0:02:02]}  Nf4 {[%clk 0:02:13]} 18. Qg3 {[%clk 0:01:56]}  Ne6 {[%clk 0:01:53]} 19. Nf3 {[%clk 0:01:44]}  Bf6 {[%clk 0:01:41]} 20. Rac1 {[%clk 0:01:37]}  Nd4 {[%clk 0:01:39]} 21. Nd5 {[%clk 0:01:11]}  Nxf3+ {[%clk 0:01:35]} 22. gxf3 {[%clk 0:01:12]}  Bh4 {[%clk 0:01:20]} 23. Rxc8 {[%clk 0:01:08]}  Bxg3 {[%clk 0:00:39]} 24. Rxd8 {[%clk 0:01:07]}  Bxf2+ {[%clk 0:00:35]} 25. Kg2 {[%clk 0:01:04]}  Rxd8 {[%clk 0:00:19]} 26. Re2 {[%clk 0:00:55]}  Ne5 {[%clk 0:00:02]} 27. Bxe5 {[%clk 0:00:48]}  dxe5 {[%clk 0:00:01]} 28. Rxf2 {[%clk 0:00:46]} 1-0


[Site "https://www.chess.com"]

[Event "Titled Tuesday Blitz April 25 Late 2023"]
[White "Uddin, Mubassar"]
[Black "Figorito, Nick"]
[WhiteFideId "2093944"]
[BlackFideId "30923689"]
[WhiteElo "2051"]
[BlackElo "2036"]
[Result "1-0"]
[Round "04"]
[TimeControl "180+2"]
[Date "2023.04.25"]
[WhiteClock "0:00:17"]
[BlackClock "0:00:23"]

1. d4 {[%clk 0:02:58]}  Nf6 {[%clk 0:03:00]} 2. c4 {[%clk 0:02:58]}  g6 {[%clk 0:03:00]} 3. Nc3 {[%clk 0:02:58]}  d5 {[%clk 0:03:00]} 4. cxd5 {[%clk 0:02:58]}  Nxd5 {[%clk 0:03:01]} 5. e4 {[%clk 0:02:58]}  Nxc3 {[%clk 0:03:02]} 6. bxc3 {[%clk 0:02:58]}  Bg7 {[%clk 0:03:03]} 7. Bc4 {[%clk 0:02:58]}  c5 {[%clk 0:03:03]} 8. Ne2 {[%clk 0:02:58]}  O-O {[%clk 0:03:04]} 9. Be3 {[%clk 0:02:57]}  Nc6 {[%clk 0:03:04]} 10. O-O {[%clk 0:02:55]}  Qc7 {[%clk 0:03:04]} 11. Rc1 {[%clk 0:02:54]}  Rd8 {[%clk 0:03:04]} 12. Bf4 {[%clk 0:02:52]}  Qd7 {[%clk 0:02:55]} 13. d5 {[%clk 0:02:42]}  Na5 {[%clk 0:02:53]} 14. Bd3 {[%clk 0:02:38]}  b5 {[%clk 0:02:48]} 15. c4 {[%clk 0:02:24]}  Nxc4 {[%clk 0:02:42]} 16. Bxc4 {[%clk 0:02:25]}  bxc4 {[%clk 0:02:43]} 17. Rxc4 {[%clk 0:02:26]}  Qb5 {[%clk 0:02:15]} 18. Rc1 {[%clk 0:02:04]}  Ba6 {[%clk 0:02:07]} 19. Ng3 {[%clk 0:01:59]}  Qa5 {[%clk 0:01:47]} 20. Re1 {[%clk 0:01:54]}  Bc3 {[%clk 0:01:43]} 21. Re3 {[%clk 0:01:48]}  Bd2 {[%clk 0:01:40]} 22. Rxc5 {[%clk 0:01:37]}  Qxc5 {[%clk 0:01:36]} 23. Qxd2 {[%clk 0:01:37]}  Rac8 {[%clk 0:01:29]} 24. h4 {[%clk 0:01:11]}  Qc1+ {[%clk 0:01:28]} 25. Qxc1 {[%clk 0:01:12]}  Rxc1+ {[%clk 0:01:29]} 26. Kh2 {[%clk 0:01:12]}  Bc4 {[%clk 0:01:11]} 27. Ra3 {[%clk 0:00:59]}  Rc2 {[%clk 0:01:12]} 28. Rxa7 {[%clk 0:00:57]}  Rxa2 {[%clk 0:01:12]} 29. Rxe7 {[%clk 0:00:56]}  Rxf2 {[%clk 0:01:12]} 30. Bg5 {[%clk 0:00:49]}  Bxd5 {[%clk 0:01:04]} 31. exd5 {[%clk 0:00:41]}  Rxd5 {[%clk 0:01:05]} 32. Ne4 {[%clk 0:00:35]}  Rff5 {[%clk 0:00:43]} 33. Nf6+ {[%clk 0:00:30]}  Kg7 {[%clk 0:00:42]} 34. Nxd5 {[%clk 0:00:20]}  Rxd5 {[%clk 0:00:43]} 35. Kg3 {[%clk 0:00:18]}  h6 {[%clk 0:00:42]} 36. Be3 {[%clk 0:00:18]}  Rd3 {[%clk 0:00:39]} 37. Kf3 {[%clk 0:00:18]}  Kf6 {[%clk 0:00:38]} 38. Ra7 {[%clk 0:00:18]}  Rd5 {[%clk 0:00:35]} 39. Ra6+ {[%clk 0:00:18]}  Kg7 {[%clk 0:00:35]} 40. Ke4 {[%clk 0:00:15]}  Rd8 {[%clk 0:00:28]} 41. Bd4+ {[%clk 0:00:15]}  Kh7 {[%clk 0:00:29]} 42. Rf6 {[%clk 0:00:14]}  Kg8 {[%clk 0:00:28]} 43. Be5 {[%clk 0:00:13]}  Rd2 {[%clk 0:00:27]} 44. Kf3 {[%clk 0:00:13]}  Rd3+ {[%clk 0:00:27]} 45. Kf4 {[%clk 0:00:11]}  Rd2 {[%clk 0:00:26]} 46. g4 {[%clk 0:00:12]}  Rd8 {[%clk 0:00:26]} 47. Rd6 {[%clk 0:00:11]}  Re8 {[%clk 0:00:25]} 48. Bf6 {[%clk 0:00:11]}  Kh7 {[%clk 0:00:25]} 49. Rd8 {[%clk 0:00:11]}  Rxd8 {[%clk 0:00:25]} 50. Bxd8 {[%clk 0:00:12]}  Kg7 {[%clk 0:00:26]} 51. Be7 {[%clk 0:00:12]}  f6 {[%clk 0:00:26]} 52. Bd6 {[%clk 0:00:11]}  Kf7 {[%clk 0:00:24]} 53. Ke4 {[%clk 0:00:11]}  Ke6 {[%clk 0:00:25]} 54. Bf8 {[%clk 0:00:11]}  h5 {[%clk 0:00:22]} 55. gxh5 {[%clk 0:00:11]}  gxh5 {[%clk 0:00:12]} 56. Bh6 {[%clk 0:00:11]}  f5+ {[%clk 0:00:12]} 57. Kf4 {[%clk 0:00:11]}  Kf6 {[%clk 0:00:13]} 58. Bg5+ {[%clk 0:00:11]}  Kg6 {[%clk 0:00:14]} 59. Bd8 {[%clk 0:00:11]}  Kf7 {[%clk 0:00:13]} 60. Kxf5 {[%clk 0:00:12]}  Kg7 {[%clk 0:00:13]} 61. Bg5 {[%clk 0:00:12]}  Kh8 {[%clk 0:00:14]} 62. Kg6 {[%clk 0:00:13]}  Kg8 {[%clk 0:00:15]} 63. Kxh5 {[%clk 0:00:14]}  Kh8 {[%clk 0:00:16]} 64. Kg6 {[%clk 0:00:14]}  Kg8 {[%clk 0:00:16]} 65. Bf6 {[%clk 0:00:14]}  Kf8 {[%clk 0:00:17]} 66. h5 {[%clk 0:00:15]}  Kg8 {[%clk 0:00:17]} 67. h6 {[%clk 0:00:15]}  Kf8 {[%clk 0:00:18]} 68. h7 {[%clk 0:00:16]}  Ke8 {[%clk 0:00:18]} 69. h8=Q+ {[%clk 0:00:17]}  Kd7 {[%clk 0:00:19]} 70. Qg7+ {[%clk 0:00:17]}  Ke6 {[%clk 0:00:20]} 71. Qe7+ {[%clk 0:00:18]}  Kd5 {[%clk 0:00:21]} 72. Qe5+ {[%clk 0:00:17]}  Kc4 {[%clk 0:00:22]} 73. Kf5 {[%clk 0:00:17]}  Kb3 {[%clk 0:00:23]} 74. Qd4 {[%clk 0:00:17]}  Ka2 {[%clk 0:00:23]} 75. Qb2# {[%clk 0:00:17]} 1-0


[Site "https://www.chess.com"]

[Event "Titled Tuesday Blitz April 25 Late 2023"]
[White "Holtel, Jasper"]
[Black "Harriott, Tyrell"]
[WhiteFideId "12956376"]
[BlackFideId "2086484"]
[WhiteElo "2372"]
[BlackElo "2107"]
[Result "0-1"]
[Round "04"]
[TimeControl "180+2"]
[Date "2023.04.25"]
[WhiteClock "0:00:15"]
[BlackClock "0:00:19"]

1. e4 {[%clk 0:03:00]}  e6 {[%clk 0:02:56]} 2. d4 {[%clk 0:03:00]}  d5 {[%clk 0:02:56]} 3. e5 {[%clk 0:02:59]}  c5 {[%clk 0:02:56]} 4. c3 {[%clk 0:03:00]}  Nc6 {[%clk 0:02:55]} 5. Nf3 {[%clk 0:03:00]}  f5 {[%clk 0:02:55]} 6. Be2 {[%clk 0:02:40]}  Nge7 {[%clk 0:02:50]} 7. O-O {[%clk 0:02:39]}  Ng6 {[%clk 0:02:48]} 8. a3 {[%clk 0:02:37]}  c4 {[%clk 0:02:44]} 9. Nbd2 {[%clk 0:02:25]}  Be7 {[%clk 0:02:40]} 10. a4 {[%clk 0:02:16]}  Na5 {[%clk 0:02:21]} 11. b3 {[%clk 0:02:08]}  Nf4 {[%clk 0:02:05]} 12. bxc4 {[%clk 0:02:04]}  O-O {[%clk 0:01:48]} 13. cxd5 {[%clk 0:01:56]}  Qxd5 {[%clk 0:01:41]} 14. Ba3 {[%clk 0:01:16]}  Bxa3 {[%clk 0:01:20]} 15. Rxa3 {[%clk 0:01:17]}  Bd7 {[%clk 0:01:18]} 16. c4 {[%clk 0:01:01]}  Qc6 {[%clk 0:01:12]} 17. Re1 {[%clk 0:00:45]}  Rfd8 {[%clk 0:01:08]} 18. Bf1 {[%clk 0:00:43]}  Be8 {[%clk 0:01:08]} 19. Qc1 {[%clk 0:00:32]}  Rac8 {[%clk 0:01:04]} 20. Rc3 {[%clk 0:00:25]}  Qxa4 {[%clk 0:00:57]} 21. Qa3 {[%clk 0:00:18]}  b6 {[%clk 0:00:49]} 22. Qxa4 {[%clk 0:00:18]}  Bxa4 {[%clk 0:00:49]} 23. g3 {[%clk 0:00:15]}  Ng6 {[%clk 0:00:46]} 24. Ng5 {[%clk 0:00:15]}  Nf8 {[%clk 0:00:46]} 25. Ngf3 {[%clk 0:00:14]}  h6 {[%clk 0:00:44]} 26. h4 {[%clk 0:00:13]}  Bc6 {[%clk 0:00:40]} 27. Bg2 {[%clk 0:00:13]}  Bb7 {[%clk 0:00:36]} 28. Rec1 {[%clk 0:00:11]}  Rc7 {[%clk 0:00:35]} 29. Nb3 {[%clk 0:00:10]}  Nxb3 {[%clk 0:00:30]} 30. Rxb3 {[%clk 0:00:11]}  Bxf3 {[%clk 0:00:30]} 31. Bxf3 {[%clk 0:00:11]}  Rxd4 {[%clk 0:00:31]} 32. Rbc3 {[%clk 0:00:08]}  Rc5 {[%clk 0:00:30]} 33. Ra1 {[%clk 0:00:08]}  Rd7 {[%clk 0:00:27]} 34. Rca3 {[%clk 0:00:07]}  Rcc7 {[%clk 0:00:26]} 35. Rc1 {[%clk 0:00:05]}  Ng6 {[%clk 0:00:25]} 36. Re3 {[%clk 0:00:04]}  Rc5 {[%clk 0:00:23]} 37. h5 {[%clk 0:00:03]}  Nxe5 {[%clk 0:00:23]} 38. Bg2 {[%clk 0:00:04]}  Rd3 {[%clk 0:00:15]} 39. Rxd3 {[%clk 0:00:03]}  Nxd3 {[%clk 0:00:16]} 40. Rd1 {[%clk 0:00:04]}  Ne5 {[%clk 0:00:15]} 41. Rd8+ {[%clk 0:00:04]}  Kf7 {[%clk 0:00:15]} 42. Ra8 {[%clk 0:00:05]}  Rc7 {[%clk 0:00:14]} 43. Rb8 {[%clk 0:00:05]}  Nxc4 {[%clk 0:00:14]} 44. Bf3 {[%clk 0:00:05]}  Ke7 {[%clk 0:00:15]} 45. Kg2 {[%clk 0:00:05]}  a5 {[%clk 0:00:15]} 46. Rg8 {[%clk 0:00:05]}  Kd6 {[%clk 0:00:15]} 47. Rd8+ {[%clk 0:00:05]}  Kc5 {[%clk 0:00:15]} 48. Be2 {[%clk 0:00:05]}  Kb5 {[%clk 0:00:14]} 49. Rd4 {[%clk 0:00:04]}  a4 {[%clk 0:00:15]} 50. g4 {[%clk 0:00:04]}  a3 {[%clk 0:00:13]} 51. gxf5 {[%clk 0:00:02]}  exf5 {[%clk 0:00:13]} 52. Bxc4+ {[%clk 0:00:02]}  Rxc4 {[%clk 0:00:13]} 53. Rd3 {[%clk 0:00:02]}  Kb4 {[%clk 0:00:13]} 54. Rd1 {[%clk 0:00:02]}  Kb3 {[%clk 0:00:13]} 55. Rb1+ {[%clk 0:00:03]}  Ka2 {[%clk 0:00:14]} 56. Rxb6 {[%clk 0:00:03]}  Rc2 {[%clk 0:00:13]} 57. Rb7 {[%clk 0:00:04]}  Rb2 {[%clk 0:00:13]} 58. Ra7 {[%clk 0:00:05]}  Kb1 {[%clk 0:00:13]} 59. Kg3 {[%clk 0:00:04]}  a2 {[%clk 0:00:13]} 60. Kf4 {[%clk 0:00:05]}  a1=Q {[%clk 0:00:14]} 61. Rxa1+ {[%clk 0:00:05]}  Kxa1 {[%clk 0:00:14]} 62. Kxf5 {[%clk 0:00:06]}  Rxf2+ {[%clk 0:00:14]} 63. Kg6 {[%clk 0:00:07]}  Rg2+ {[%clk 0:00:15]} 64. Kh7 {[%clk 0:00:07]}  Rg5 {[%clk 0:00:15]} 65. Kh8 {[%clk 0:00:07]}  Ka2 {[%clk 0:00:14]} 66. Kh7 {[%clk 0:00:08]}  Kb3 {[%clk 0:00:14]} 67. Kg8 {[%clk 0:00:08]}  Kc4 {[%clk 0:00:14]} 68. Kh7 {[%clk 0:00:09]}  Kd5 {[%clk 0:00:15]} 69. Kh8 {[%clk 0:00:10]}  Ke5 {[%clk 0:00:15]} 70. Kh7 {[%clk 0:00:11]}  Kf5 {[%clk 0:00:15]} 71. Kh8 {[%clk 0:00:12]}  Kg4 {[%clk 0:00:15]} 72. Kg8 {[%clk 0:00:12]}  Kxh5 {[%clk 0:00:16]} 73. Kh7 {[%clk 0:00:13]}  Kg4 {[%clk 0:00:16]} 74. Kg8 {[%clk 0:00:14]}  h5 {[%clk 0:00:16]} 75. Kf7 {[%clk 0:00:13]}  h4 {[%clk 0:00:17]} 76. Ke6 {[%clk 0:00:13]}  h3 {[%clk 0:00:18]} 77. Kd6 {[%clk 0:00:13]}  h2 {[%clk 0:00:19]} 78. Ke6 {[%clk 0:00:14]}  h1=Q {[%clk 0:00:19]} 79. Kd6 {[%clk 0:00:14]}  Qh6+ {[%clk 0:00:19]} 80. Ke7 {[%clk 0:00:14]}  Qf6+ {[%clk 0:00:19]} 81. Ke8 {[%clk 0:00:15]}  Re5+ {[%clk 0:00:19]} 82. Kd7 {[%clk 0:00:16]}  Re7+ {[%clk 0:00:19]} 83. Kd8 {[%clk 0:00:15]}  Qf8# {[%clk 0:00:19]} 0-1


[Site "https://www.chess.com"]